bitfinex/quotes_BTCUSD_20241128
["timestamp","ask_amount","ask_price","bid_price","bid_amount"]
[1732793454222,0.32217303,95023.0,95022.0,0.0017256]
[1732793455586,0.47217303,95023.0,95022.0,0.0017256]
[1732793456072,0.47217303,95023.0,95022.0,6e-07]
[1732793456290,0.47217303,95023.0,95008.0,0.001726]
[1732793456291,0.255253,95009.0,95008.0,6e-07]
[1732793456515,0.48209821,95009.0,95008.0,6e-07]
[1732793456742,0.55199835,95009.0,95008.0,6e-07]
[1732793458482,0.49357353,95009.0,95008.0,6e-07]
[1732793458710,0.50157353,95009.0,95008.0,0.0010006]
[1732793459612,0.50657353,95009.0,95008.0,0.0010006]
[1732793460129,0.2538554,95009.0,95008.0,0.0010006]
[1732793460347,0.30551594,95009.0,95008.0,0.0010006]
[1732793460995,0.118253,95009.0,95008.0,0.00460043]
[1732793462737,0.118253,95009.0,95008.0,0.0010006]
[1732793462966,0.22109821,95009.0,95008.0,0.0010006]
[1732793465005,0.29069821,95009.0,95008.0,6e-07]
[1732793466140,0.29569821,95009.0,95008.0,6e-07]
[1732793466379,0.37956077,95009.0,95008.0,6e-07]
[1732793467751,0.38256077,95009.0,95008.0,6e-07]
[1732793467974,0.54056077,95009.0,95008.0,0.0010006]
[1732793468219,0.54056077,95009.0,95000.0,0.1417254]
[1732793468220,0.255262,95001.0,95000.0,0.1417254]
[1732793468445,0.44678821,95001.0,95000.0,0.1417254]
[1732793469796,0.44778821,95001.0,95000.0,0.1417254]
[1732793470015,0.44878821,95001.0,95000.0,0.1417254]
[1732793471186,0.46059136,95001.0,95000.0,0.1417254]
[1732793473413,0.48217538,95001.0,95000.0,0.1417254]
[1732793473863,0.39349438,95001.0,95000.0,0.1417254]
[1732793474095,0.24349438,95001.0,95000.0,0.1417254]
[1732793474323,0.11906515,95001.0,95000.0,0.14532523]
[1732793474551,0.107262,95001.0,95000.0,0.1417254]
[1732793475006,0.107262,95001.0,95000.0,0.14532523]
[1732793475776,0.002,95001.0,95000.0,0.14532523]
[1732793475996,0.001,95001.0,95000.0,0.14532523]
[1732793476220,0.315742,95014.0,95013.0,0.00359983]
[1732793479007,0.316742,95014.0,95013.0,0.00959983]
[1732793479224,0.316742,95014.0,95013.0,0.01159983]
[1732793479915,0.316742,95014.0,95013.0,0.00959983]
[1732793480637,0.106247,95014.0,95013.0,0.00959983]
[1732793480864,0.106247,95014.0,95013.0,0.01259983]
[1732793483632,0.099947,95014.0,95013.0,0.01259983]
[1732793484982,0.1008091,95014.0,95013.0,0.01259983]
[1732793485202,0.1071091,95014.0,95013.0,0.01259983]
[1732793486320,0.0018621,95014.0,95013.0,0.01259983]
[1732793486802,0.0018621,95014.0,95013.0,0.10054726]
[1732793487034,0.0018621,95014.0,95013.0,0.09054726]
[1732793487271,0.0018621,95014.0,95013.0,0.10054726]
[1732793487493,0.0018621,95014.0,95013.0,0.09754726]
[1732793487742,0.1071091,95014.0,95013.0,0.08754726]
[1732793488006,0.1061091,95014.0,95013.0,0.00359983]
[1732793488474,0.315732,95017.0,95016.0,0.00359983]
[1732793490284,0.315732,95017.0,95016.0,0.00459983]
[1732793490999,0.315732,95017.0,95016.0,0.00359983]
[1732793491226,0.315732,95017.0,95016.0,0.00559983]
[1732793491435,0.315732,95017.0,95016.0,0.00859983]
[1732793491645,0.315732,95017.0,95016.0,0.00559983]
[1732793492075,0.315732,95017.0,95016.0,0.01059983]
[1732793494259,0.105244,95017.0,95016.0,0.01059983]
[1732793494770,0.10518822,95017.0,95016.0,0.01059983]
[1732793495010,0.000862,95022.0,95021.0,0.00359983]
[1732793495486,0.000862,95022.0,95021.0,0.08366225]
[1732793496663,0.000862,95022.0,95021.0,0.08566225]
[1732793496897,0.1061,95022.0,95021.0,0.08566225]
[1732793497128,0.000862,95022.0,95021.0,0.08379983]
[1732793497355,0.000862,95022.0,95021.0,0.08666224]
[1732793498051,0.000862,95022.0,95021.0,0.00846224]
[1732793498610,0.1061,95022.0,95021.0,0.00846224]
[1732793498858,0.1061,95022.0,95021.0,0.00659983]
[1732793499789,0.000862,95022.0,95021.0,0.00659983]
[1732793500018,0.1061,95022.0,95021.0,0.00846236]
[1732793500238,0.1061,95022.0,95021.0,0.00659983]
[1732793502356,0.000862,95022.0,95021.0,0.00659983]
[1732793503047,0.1061,95022.0,95021.0,0.00659983]
[1732793504247,0.000862,95022.0,95021.0,0.00659983]
[1732793504479,0.000902,95022.0,95021.0,0.00659983]
[1732793504704,0.10614,95022.0,95021.0,0.00659983]
[1732793505169,0.000902,95022.0,95021.0,0.00659983]
[1732793507040,0.000902,95022.0,95021.0,0.28524654]
[1732793507297,0.210422,95047.0,95046.0,0.00359983]
[1732793507568,0.02113492,95052.0,95032.0,0.210455]
[1732793507569,0.1060687,95050.0,95049.0,0.00359983]
[1732793507806,0.0008617,95050.0,95049.0,0.00359983]
[1732793508037,0.1060687,95050.0,95049.0,0.00359983]
[1732793509723,0.0008617,95050.0,95049.0,0.00359983]
[1732793509966,0.0008617,95050.0,95049.0,0.22665304]
[1732793510210,0.0008617,95050.0,95049.0,0.22165304]
[1732793511415,0.0008617,95050.0,95049.0,0.11644504]
[1732793511649,0.0008617,95050.0,95049.0,0.22165304]
[1732793511880,0.0008617,95050.0,95049.0,0.22565304]
[1732793512367,0.0008617,95050.0,95049.0,0.23265304]
[1732793514928,0.0008617,95050.0,95049.0,0.12744504]
[1732793515366,0.0008617,95050.0,95049.0,0.23368244]
[1732793515577,0.0008617,95050.0,95049.0,0.23265304]
[1732793516916,0.0008617,95050.0,95049.0,0.24265304]
[1732793518083,0.0008617,95050.0,95049.0,0.23865304]
[1732793518525,0.0018617,95050.0,95049.0,0.24665304]
[1732793519174,0.0019017,95050.0,95049.0,0.23965304]
[1732793519388,0.0019017,95050.0,95049.0,0.33367874]
[1732793519609,0.0019017,95050.0,95049.0,0.34267874]
[1732793519855,0.0019017,95050.0,95049.0,0.42165304]
[1732793520073,0.0008626,95069.0,95068.0,0.00359983]
[1732793520289,0.0008626,95069.0,95068.0,0.22163204]
[1732793521261,0.0008626,95069.0,95068.0,0.22363204]
[1732793521504,0.0008626,95069.0,95068.0,0.11844504]
[1732793521958,0.0008626,95069.0,95068.0,0.22363204]
[1732793522408,0.36349628,95090.0,95070.0,0.105185]
[1732793522635,0.105182,95073.0,95069.0,0.01]
[1732793522856,0.210331,95088.0,95069.0,0.11284521]
[1732793523073,0.105177,95078.0,95070.0,0.00093276]
[1732793523283,0.105177,95078.0,95070.0,0.10611676]
[1732793523491,0.105183,95072.0,95071.0,0.00183031]
[1732793523731,0.09179018,95093.0,95070.0,0.00183027]
[1732793523732,0.15316928,95081.0,95070.0,0.00183027]
[1732793523977,0.210344,95082.0,95070.0,0.00183027]
[1732793524197,0.10518,95075.0,95070.0,0.00183027]
[1732793524449,0.15316928,95090.0,95073.0,0.00359983]
[1732793524667,0.10518,95075.0,95074.0,0.00183741]
[1732793524884,0.10518,95075.0,95073.0,0.00359983]
[1732793525544,0.210355,95077.0,95073.0,0.00359983]
[1732793525768,0.105179,95076.0,95073.0,0.00359983]
[1732793525974,0.15316928,95090.0,95073.0,0.00359983]
[1732793525975,0.105181,95074.0,95073.0,0.00359983]
[1732793526873,0.105181,95074.0,95073.0,0.00559983]
[1732793527313,0.105181,95074.0,95073.0,0.00359983]
[1732793527552,0.105181,95074.0,95073.0,0.00759983]
[1732793527783,0.105181,95074.0,95073.0,0.00659983]
[1732793528019,0.210336,95086.0,95073.0,0.00659983]
[1732793528020,0.10518,95075.0,95073.0,0.00659983]
[1732793528234,0.10518,95075.0,95073.0,0.00859983]
[1732793528464,0.210348,95081.0,95073.0,0.00859983]
[1732793528690,0.105178,95077.0,95074.0,0.00186147]
[1732793528936,0.210349,95080.0,95073.0,0.00659983]
[1732793529156,0.105179,95076.0,95074.0,0.00186151]
[1732793529374,0.105179,95076.0,95073.0,0.00659983]
[1732793529375,0.105179,95076.0,95073.0,0.00359983]
[1732793529595,0.105179,95076.0,95073.0,0.00659983]
[1732793529825,0.105179,95076.0,95073.0,0.00359983]
[1732793530039,0.105176,95079.0,95073.0,0.00359983]
[1732793530264,0.210329,95089.0,95073.0,0.00546132]
[1732793530481,0.105178,95077.0,95073.0,0.00646132]
[1732793530694,0.105178,95077.0,95073.0,0.00459983]
[1732793530916,0.105178,95077.0,95073.0,0.00559983]
[1732793531172,0.315485,95092.0,95091.0,0.00359983]
[1732793531392,0.105161,95092.0,95091.0,0.00359983]
[1732793533217,0.210315,95096.0,95095.0,0.00359983]
[1732793533440,0.0757,95100.0,95099.0,0.00359983]
[1732793533441,0.180852,95100.0,95099.0,0.00359983]
[1732793533682,0.105152,95100.0,95099.0,0.00359983]
[1732793533903,0.105151,95101.0,95100.0,0.00359983]
[1732793534372,0.0008631,95103.0,95102.0,0.00359983]
[1732793534828,0.1060121,95103.0,95102.0,0.00359983]
[1732793535753,0.0018631,95103.0,95102.0,0.00359983]
[1732793536426,0.1070121,95103.0,95102.0,0.00359983]
[1732793536936,0.1060121,95103.0,95102.0,0.00359983]
[1732793542699,0.1060521,95103.0,95102.0,0.00359983]
[1732793544734,0.1060521,95103.0,95102.0,0.00459983]
[1732793545199,0.0009031,95103.0,95102.0,0.00459983]
[1732793546376,0.1060521,95103.0,95102.0,0.00459983]
[1732793553921,0.28770138,95103.0,95102.0,0.001]
[1732793554145,0.37799793,95103.0,95102.0,0.001]
[1732793554373,0.1289,95100.0,95081.0,0.00359983]
[1732793554616,0.0823,95081.0,95074.0,0.09422503]
[1732793554844,0.210366,95073.0,95069.0,0.09594803]
[1732793555082,0.210362,95075.0,95074.0,0.00359983]
[1732793555313,0.315542,95075.0,95074.0,0.00359983]
[1732793555563,0.315542,95075.0,95069.0,0.001723]
[1732793555564,0.210366,95073.0,95069.0,0.001723]
[1732793555800,0.105182,95073.0,95072.0,0.09422478]
[1732793556032,0.210361,95075.0,95071.0,0.09782461]
[1732793556033,0.105183,95072.0,95071.0,0.09782461]
[1732793556293,0.105185,95070.0,95069.0,0.001723]
[1732793556549,0.228885,95070.0,95069.0,0.001723]
[1732793557941,0.228885,95070.0,95069.0,0.002723]
[1732793558375,0.32630823,95070.0,95069.0,0.002723]
[1732793559048,0.32630823,95070.0,95069.0,0.004723]
[1732793559270,0.228925,95070.0,95069.0,0.004723]
[1732793560231,0.228925,95070.0,95069.0,0.003723]
[1732793560685,0.228925,95070.0,95069.0,0.004723]
[1732793565537,0.228925,95070.0,95069.0,0.00832283]
[1732793565748,0.105225,95070.0,95069.0,0.00832283]
[1732793568547,0.105225,95070.0,95069.0,0.00732283]
[1732793569244,0.105225,95070.0,95069.0,0.00632283]
[1732793569725,0.105225,95070.0,95069.0,0.00732283]
[1732793570227,0.105225,95070.0,95069.0,0.003723]
[1732793570482,0.48307021,95070.0,95069.0,0.003723]
[1732793570968,0.0793,95068.0,95045.0,0.00359983]
[1732793571185,0.184513,95045.0,95044.0,0.00359983]
[1732793571406,0.231713,95045.0,95044.0,0.00359983]
[1732793571990,0.231713,95045.0,95022.0,0.14140552]
[1732793571991,0.105214,95044.0,95043.0,0.00359983]
[1732793573487,0.105214,95044.0,95043.0,0.00659983]
[1732793573973,0.17160896,95044.0,95043.0,0.00659983]
[1732793574424,0.105214,95044.0,95043.0,0.00759983]
[1732793574671,0.105214,95044.0,95043.0,0.004]
[1732793575205,0.105214,95044.0,95043.0,0.00759983]
[1732793575679,0.105214,95044.0,95043.0,0.004]
[1732793575953,0.105214,95044.0,95043.0,0.00759983]
[1732793578271,0.105214,95044.0,95043.0,0.00659983]
[1732793578488,0.105214,95044.0,95043.0,0.00359983]
[1732793578942,0.105214,95044.0,95043.0,0.00559983]
[1732793579159,0.105214,95044.0,95043.0,0.00659983]
[1732793580675,0.105214,95044.0,95043.0,0.00832283]
[1732793582372,0.2820197,95044.0,95043.0,0.004723]
[1732793582796,0.38486491,95044.0,95043.0,0.004723]
[1732793583483,0.33225921,95044.0,95043.0,0.004723]
[1732793583893,0.34374371,95044.0,95043.0,0.004723]
[1732793584975,0.49374371,95044.0,95043.0,0.004723]
[1732793586077,0.49374371,95044.0,95043.0,0.002723]
[1732793586298,0.49574371,95044.0,95043.0,0.001723]
[1732793586510,0.58740238,95044.0,95043.0,0.001723]
[1732793586976,0.105238,95022.0,95021.0,0.00532383]
[1732793587224,0.232538,95022.0,95021.0,0.00892947]
[1732793587466,0.232538,95022.0,95021.0,0.001724]
[1732793587693,0.42177801,95022.0,95021.0,0.001724]
[1732793588376,0.232538,95022.0,95021.0,0.00532383]
[1732793588620,0.105238,95022.0,95021.0,0.01132383]
[1732793588849,0.105238,95022.0,95021.0,0.00532383]
[1732793588850,0.106238,95022.0,95021.0,0.00532383]
[1732793589287,0.105238,95022.0,95021.0,0.00532383]
[1732793589723,0.109238,95022.0,95021.0,0.00532383]
[1732793590155,0.107238,95022.0,95021.0,0.00532383]
[1732793590630,0.107238,95022.0,95021.0,0.001724]
[1732793591121,0.105238,95022.0,95021.0,0.001724]
[1732793591328,0.106238,95022.0,95021.0,0.001724]
[1732793591543,0.28499177,95022.0,95021.0,0.001724]
[1732793592037,0.33119177,95022.0,95021.0,0.001724]
[1732793595864,0.25628321,95022.0,95021.0,0.001724]
[1732793596070,0.153438,95022.0,95021.0,0.00532383]
[1732793596304,0.107238,95022.0,95021.0,0.00532383]
[1732793596513,0.002,95022.0,95021.0,0.01251885]
[1732793596756,0.107238,95022.0,95021.0,0.01251885]
[1732793597213,0.002,95022.0,95021.0,0.01251885]
[1732793597452,0.107238,95022.0,95021.0,0.01251885]
[1732793597876,0.106238,95022.0,95021.0,0.01251885]
[1732793598091,0.001,95022.0,95021.0,0.01251885]
[1732793598324,0.001,95022.0,95021.0,0.11775785]
[1732793598533,0.001,95022.0,95021.0,0.01356741]
[1732793598770,0.315683,95032.0,95031.0,0.00359983]
[1732793599880,0.315683,95032.0,95031.0,0.01080268]
[1732793600080,0.315683,95032.0,95031.0,0.00359983]
[1732793600935,0.315683,95032.0,95031.0,0.02232874]
[1732793601551,0.315683,95032.0,95031.0,0.02432874]
[1732793602039,0.315683,95032.0,95031.0,0.02632874]
[1732793602232,0.3682962,95032.0,95031.0,0.02632874]
[1732793602479,0.4468962,95032.0,95031.0,0.002]
[1732793602685,0.4468962,95032.0,95031.0,0.007]
[1732793602686,0.59924141,95032.0,95031.0,0.007]
[1732793603593,0.74924141,95032.0,95031.0,0.007]
[1732793603927,0.74924141,95032.0,95031.0,0.00920767]
[1732793603928,0.78824277,95032.0,95031.0,0.00920767]
[1732793603930,0.78824277,95032.0,95031.0,0.002]
[1732793604292,0.74924141,95032.0,95031.0,0.002]
[1732793604505,0.74924141,95032.0,95021.0,0.001724]
[1732793604506,0.255238,95022.0,95021.0,0.001724]
[1732793604746,0.255238,95022.0,95021.0,0.020465]
[1732793604750,0.38360701,95022.0,95021.0,0.020465]
[1732793604954,0.38360701,95022.0,95021.0,0.07106781]
[1732793605603,0.38360701,95022.0,95021.0,0.05533566]
[1732793605809,0.45940701,95022.0,95021.0,0.05533566]
[1732793606496,0.46240701,95022.0,95021.0,0.05533566]
[1732793606712,0.51180701,95022.0,95021.0,0.05533566]
[1732793607552,0.52348454,95022.0,95021.0,0.05533566]
[1732793607758,0.52348454,95022.0,95021.0,0.0668753]
[1732793607759,0.52548454,95022.0,95021.0,0.0668753]
[1732793608420,0.52548454,95022.0,95021.0,0.05533566]
[1732793609068,0.54672986,95022.0,95021.0,0.05533566]
[1732793609489,0.54672986,95022.0,95021.0,0.04274987]
[1732793611545,0.39600606,95022.0,95021.0,0.04274987]
[1732793616326,0.39100606,95022.0,95021.0,0.04274987]
[1732793616567,0.39400606,95022.0,95021.0,0.04274987]
[1732793617027,0.29116085,95022.0,95021.0,0.0463497]
[1732793617242,0.29316085,95022.0,95021.0,0.0463497]
[1732793617485,0.14316085,95022.0,95021.0,0.0463497]
[1732793617706,0.14516085,95022.0,95021.0,0.0463497]
[1732793617903,0.14516085,95022.0,95021.0,0.0589669]
[1732793618167,0.14316085,95022.0,95021.0,0.0589669]
[1732793618634,0.20888144,95022.0,95021.0,0.0589669]
[1732793619124,0.20388144,95022.0,95021.0,0.0589669]
[1732793619339,0.30772665,95022.0,95021.0,0.05536707]
[1732793619575,0.45772665,95022.0,95021.0,0.04274987]
[1732793619789,0.45772665,95022.0,95021.0,0.02833112]
[1732793619999,0.45672665,95022.0,95021.0,0.020465]
[1732793621763,0.45772665,95022.0,95021.0,0.020465]
[1732793622433,0.45772665,95022.0,95014.0,0.001724]
[1732793622434,0.47968865,95022.0,95014.0,0.001724]
[1732793622641,0.382446,95015.0,95014.0,0.001724]
[1732793623134,0.105262,95001.0,95000.0,0.1417254]
[1732793623354,0.105262,95001.0,95000.0,0.16404838]
[1732793623355,0.20810721,95001.0,95000.0,0.16404838]
[1732793623813,0.27102173,95001.0,95000.0,0.16404838]
[1732793624030,0.27102173,95001.0,95000.0,0.14960962]
[1732793625418,0.39712173,95001.0,95000.0,0.14960962]
[1732793625640,0.40212173,95001.0,95000.0,0.14960962]
[1732793626324,0.40212173,95001.0,95000.0,0.1417254]
[1732793627404,0.40212173,95001.0,95000.0,0.14960366]
[1732793627625,0.40212173,95001.0,95000.0,0.1417254]
[1732793628501,0.42363174,95001.0,95000.0,0.1417254]
[1732793628711,0.43506095,95001.0,95000.0,0.1417254]
[1732793629184,0.58506095,95001.0,95000.0,0.1417254]
[1732793631437,0.58506095,95001.0,95000.0,0.0364604]
[1732793631887,0.58506095,95001.0,94986.0,0.01442704]
[1732793631888,0.210531,94998.0,94986.0,0.01442704]
[1732793632141,0.255277,94987.0,94986.0,0.01442704]
[1732793632368,0.35812221,94987.0,94986.0,0.01442704]
[1732793633345,0.36412221,94987.0,94986.0,0.01542704]
[1732793633576,0.36412221,94987.0,94985.0,0.0017236]
[1732793633577,0.105278,94986.0,94985.0,0.001]
[1732793633808,0.43664543,94986.0,94985.0,0.001]
[1732793635141,0.44164543,94986.0,94985.0,0.001]
[1732793635390,0.44464543,94986.0,94985.0,0.001]
[1732793638387,0.46550025,94986.0,94985.0,0.001]
[1732793638595,1.00750025,94986.0,94985.0,1e-06]
[1732793638808,1.01750025,94986.0,94985.0,1e-06]
[1732793639467,1.01250025,94986.0,94985.0,1e-06]
[1732793639941,1.02150025,94986.0,94985.0,0.001001]
[1732793640153,1.01150025,94986.0,94985.0,0.001001]
[1732793640391,1.00850025,94986.0,94985.0,0.001001]
[1732793640836,1.01350025,94986.0,94985.0,0.001001]
[1732793642371,0.93497803,94986.0,94985.0,0.001001]
[1732793642588,0.39297803,94986.0,94985.0,0.001001]
[1732793643501,0.14013282,94986.0,94985.0,0.001001]
[1732793643713,0.119278,94986.0,94985.0,0.00460083]
[1732793643929,0.119278,94986.0,94985.0,0.09121079]
[1732793644152,0.119278,94986.0,94985.0,0.10258842]
[1732793644460,0.014,94986.0,94985.0,0.11681541]
[1732793644664,0.119278,94986.0,94985.0,0.10258842]
[1732793644892,0.014,94986.0,94985.0,0.11681541]
[1732793645137,0.009,94986.0,94985.0,0.11681541]
[1732793645341,0.119278,94986.0,94985.0,0.11681541]
[1732793645558,0.014,94986.0,94985.0,0.11681541]
[1732793646241,0.014,94986.0,94985.0,0.22209441]
[1732793646486,0.005,94986.0,94985.0,0.22109441]
[1732793646709,0.004,94986.0,94985.0,0.11581541]
[1732793646978,0.210542,94993.0,94985.0,0.11582939]
[1732793647219,0.105278,94986.0,94985.0,0.09321459]
[1732793647401,0.106278,94986.0,94985.0,0.05672072]
[1732793647644,0.106278,94986.0,94985.0,0.04533265]
[1732793648104,0.105278,94986.0,94985.0,0.03633265]
[1732793648320,0.105278,94986.0,94985.0,0.03733265]
[1732793648798,0.1579161,94986.0,94985.0,0.03733265]
[1732793649258,0.1579161,94986.0,94985.0,0.01950012]
[1732793649465,0.1579161,94986.0,94985.0,0.02250012]
[1732793649887,0.1579161,94986.0,94985.0,0.01850012]
[1732793650113,0.1589161,94986.0,94985.0,0.03109995]
[1732793650330,0.1589161,94986.0,94985.0,0.02750012]
[1732793650552,0.1589161,94986.0,94985.0,0.02150012]
[1732793650553,0.1579161,94986.0,94985.0,0.02150012]
[1732793651011,0.1579161,94986.0,94985.0,0.01950012]
[1732793651241,0.105278,94986.0,94985.0,0.02309995]
[1732793651468,0.105278,94986.0,94985.0,0.11964768]
[1732793651685,0.105278,94986.0,94985.0,0.11864768]
[1732793651973,0.10614,94986.0,94985.0,0.11864768]
[1732793652400,0.10614,94986.0,94985.0,0.13005116]
[1732793652854,0.10614,94986.0,94985.0,0.12705116]
[1732793653305,0.1588631,94986.0,94985.0,0.04875116]
[1732793653521,0.10614,94986.0,94985.0,0.03634768]
[1732793653768,0.10614,94986.0,94985.0,0.04234768]
[1732793653769,0.10714,94986.0,94985.0,0.04234768]
[1732793653981,0.10714,94986.0,94985.0,0.04534768]
[1732793654165,0.10614,94986.0,94985.0,0.03934768]
[1732793654410,0.10614,94986.0,94985.0,0.03634768]
[1732793654932,0.10614,94986.0,94985.0,0.03834768]
[1732793655037,0.10614,94986.0,94985.0,0.04234768]
[1732793656257,0.10618,94986.0,94985.0,0.04234768]
[1732793656960,0.000902,94986.0,94985.0,0.03634768]
[1732793659056,0.10818,94986.0,94985.0,0.04537354]
[1732793659794,0.00122662,94986.0,94985.0,0.04537354]
[1732793660053,0.00122662,94986.0,94985.0,0.04937354]
[1732793660305,0.10650462,94986.0,94985.0,0.04937354]
[1732793661946,0.15926458,94986.0,94985.0,0.04937354]
[1732793662221,0.45710979,94986.0,94985.0,0.02012435]
[1732793662447,0.53450979,94986.0,94985.0,0.02012435]
[1732793662932,0.53450979,94986.0,94985.0,0.013001]
[1732793663155,0.53537179,94986.0,94985.0,0.009001]
[1732793663380,0.53414517,94986.0,94985.0,1e-06]
[1732793663650,0.53714517,94986.0,94985.0,1e-06]
[1732793663903,0.56297774,94986.0,94985.0,1e-06]
[1732793664138,0.55797774,94986.0,94985.0,1e-06]
[1732793664369,0.55497774,94986.0,94985.0,1e-06]
[1732793664607,0.56297774,94986.0,94985.0,0.001001]
[1732793664825,0.55997774,94986.0,94985.0,1e-06]
[1732793665272,0.56797774,94986.0,94985.0,0.001001]
[1732793666239,0.56297774,94986.0,94985.0,0.001001]
[1732793666472,0.56797774,94986.0,94985.0,0.001001]
[1732793666697,0.55997774,94986.0,94985.0,1e-06]
[1732793666930,0.55997774,94986.0,94985.0,0.001001]
[1732793666931,0.56797774,94986.0,94985.0,0.001001]
[1732793667373,0.55997774,94986.0,94985.0,1e-06]
[1732793667641,1.13501774,94986.0,94985.0,1e-06]
[1732793667888,1.14301774,94986.0,94985.0,1e-06]
[1732793668112,0.337991,94974.0,94972.0,0.0017224]
[1732793668331,0.48773621,94974.0,94972.0,0.0017224]
[1732793669488,0.52713638,94974.0,94973.0,4e-07]
[1732793669953,0.52713638,94974.0,94972.0,0.0017224]
[1732793669954,0.82669317,94973.0,94972.0,8e-07]
[1732793670188,1.03236984,94973.0,94972.0,8e-07]
[1732793670878,0.278294,94972.0,94971.0,8e-07]
[1732793671095,0.38113921,94972.0,94971.0,8e-07]
[1732793671601,0.46403921,94972.0,94971.0,8e-07]
[1732793673449,0.47103921,94972.0,94971.0,0.0010008]
[1732793673671,0.57687067,94972.0,94971.0,0.0010008]
[1732793674381,0.45103921,94972.0,94971.0,0.0010008]
[1732793675781,0.45103921,94972.0,94971.0,0.0027252]
[1732793676021,0.45190141,94972.0,94971.0,0.0027252]
[1732793676932,0.47490141,94972.0,94971.0,2e-07]
[1732793677161,0.67961967,94972.0,94971.0,2e-07]
[1732793677395,0.67961967,94972.0,94951.0,6e-07]
[1732793677396,0.105316,94952.0,94951.0,6e-07]
[1732793677667,0.35816121,94952.0,94951.0,6e-07]
[1732793678165,0.38116121,94952.0,94951.0,6e-07]
[1732793678898,0.38216121,94952.0,94951.0,6e-07]
[1732793679124,0.48499267,94952.0,94951.0,6e-07]
[1732793680046,0.49623196,94952.0,94951.0,6e-07]
[1732793680303,0.50323196,94952.0,94951.0,6e-07]
[1732793680592,0.48023196,94952.0,94951.0,6e-07]
[1732793681026,0.47923196,94952.0,94951.0,6e-07]
[1732793681497,0.48323196,94952.0,94951.0,6e-07]
[1732793681759,1.02523196,94952.0,94951.0,6e-07]
[1732793681975,0.79372855,94952.0,94951.0,6e-07]
[1732793682199,0.76116121,94952.0,94951.0,6e-07]
[1732793683416,0.116316,94952.0,94951.0,0.00360043]
[1732793683642,0.109316,94952.0,94951.0,0.08560043]
[1732793684106,0.109316,94952.0,94951.0,0.1040589]
[1732793684787,0.001,94952.0,94951.0,0.1040589]
[1732793685009,0.105316,94952.0,94951.0,0.10406362]
[1732793685235,0.105316,94952.0,94951.0,0.12252674]
[1732793685466,0.001,94952.0,94951.0,0.12252674]
[1732793685930,0.106316,94952.0,94951.0,0.12252674]
[1732793685933,0.106316,94952.0,94951.0,0.12452674]
[1732793686645,0.001,94952.0,94951.0,0.12452674]
[1732793686902,0.001,94952.0,94951.0,0.22984374]
[1732793687427,0.001,94952.0,94951.0,0.12452674]
[1732793687656,0.001,94952.0,94951.0,0.12538894]
[1732793688340,0.001,94952.0,94951.0,0.13325521]
[1732793688773,0.001,94952.0,94951.0,0.14747356]
[1732793688987,0.001,94952.0,94951.0,0.11479202]
[1732793689231,0.001,94952.0,94951.0,0.22010902]
[1732793689481,0.001,94952.0,94951.0,0.23432737]
[1732793690443,0.001,94952.0,94951.0,0.23232737]
[1732793690653,0.105307,94960.0,94954.0,0.105313]
[1732793690891,0.105307,94960.0,94955.0,0.04056062]
[1732793691125,0.105307,94960.0,94956.0,0.04056062]
[1732793691369,0.10531,94958.0,94957.0,0.04416045]
[1732793691812,0.10531,94958.0,94957.0,0.02998697]
[1732793692523,0.10531,94958.0,94957.0,0.04723635]
[1732793692739,0.10631,94958.0,94957.0,0.04723635]
[1732793693252,0.001,94958.0,94957.0,0.15254635]
[1732793693508,0.001,94958.0,94957.0,0.04902426]
[1732793693801,0.106309,94958.0,94957.0,0.04723635]
[1732793698098,0.106309,94958.0,94957.0,0.04723157]
[1732793698830,0.001,94958.0,94957.0,0.15254157]
[1732793699065,0.001,94958.0,94957.0,0.04723157]
[1732793699302,0.1080338,94958.0,94957.0,0.04723157]
[1732793699536,0.1080338,94958.0,94957.0,0.05863212]
[1732793700257,0.0027248,94958.0,94957.0,0.05863212]
[1732793700480,0.0027248,94958.0,94957.0,0.16499506]
[1732793700703,0.0027248,94958.0,94957.0,0.15440545]
[1732793700927,0.0027248,94958.0,94957.0,0.04723157]
[1732793701178,0.1080338,94958.0,94957.0,0.04723157]
[1732793706280,0.0027248,94958.0,94957.0,0.04723157]
[1732793706530,0.1080338,94958.0,94957.0,0.04723157]
[1732793706761,0.1080338,94958.0,94957.0,0.15254157]
[1732793706762,0.0027248,94958.0,94957.0,0.15254157]
[1732793707020,0.0027248,94958.0,94957.0,0.39258678]
[1732793707252,0.02138357,94994.0,94971.0,0.10889483]
[1732793707481,0.105287,94979.0,94971.0,0.20939713]
[1732793707765,0.105292,94974.0,94971.0,0.11122146]
[1732793707994,0.000902,94986.0,94985.0,0.00359983]
[1732793708238,0.000902,94986.0,94985.0,0.1494929]
[1732793708463,0.000902,94986.0,94985.0,0.15086934]
[1732793708695,0.000902,94986.0,94985.0,0.16225942]
[1732793709426,0.000902,94986.0,94985.0,0.15386934]
[1732793710627,0.000902,94986.0,94985.0,0.15886934]
[1732793711503,0.000902,94986.0,94985.0,0.05359034]
[1732793711746,0.000902,94986.0,94985.0,0.0522139]
[1732793711747,0.10618,94986.0,94985.0,0.0522139]
[1732793713237,0.10318,94986.0,94985.0,0.03437164]
[1732793713463,0.49962743,94986.0,94985.0,3.3e-07]
[1732793714358,0.49962743,94986.0,94963.0,0.00359983]
[1732793714359,0.3201476,94986.0,94954.0,0.00359983]
[1732793714582,0.105313,94955.0,94954.0,0.00359983]
[1732793714802,0.105313,94955.0,94954.0,0.02286958]
[1732793715711,0.105313,94955.0,94954.0,0.01926975]
[1732793716410,0.105313,94955.0,94954.0,0.02026975]
[1732793717149,0.106313,94955.0,94954.0,0.02126975]
[1732793717390,0.106313,94955.0,94954.0,0.02486958]
[1732793717832,0.106313,94955.0,94954.0,0.02386958]
[1732793718066,0.106313,94955.0,94954.0,0.02586958]
[1732793720178,0.1801297,94955.0,94954.0,0.02226975]
[1732793720397,0.1801297,94955.0,94954.0,0.02586958]
[1732793720660,0.1801297,94955.0,94954.0,0.01446853]
[1732793720892,0.1801297,94955.0,94954.0,0.00659983]
[1732793721570,0.106313,94955.0,94954.0,0.00659983]
[1732793721805,0.106313,94955.0,94954.0,0.003]
[1732793723178,0.106313,94955.0,94954.0,0.00659983]
[1732793723405,0.106313,94955.0,94954.0,0.19964638]
[1732793723406,0.001,94955.0,94954.0,0.19964638]
[1732793723624,0.0778,94983.0,94954.0,0.19904138]
[1732793723625,0.210596,94969.0,94954.0,0.19904138]
[1732793723841,0.0778,94983.0,94955.0,0.31347021]